[Event "Live Chess"]
[Site "Chess.com"]
[Date "2024.06.01"]
[Round "-"]
[White "LL220284LL"]
[Black "FMOlexandrProhorov"]
[Result "1-0"]
[WhiteElo "2550"]
[BlackElo "2356"]
[TimeControl "300"]
[EndTime "13:20:52 PDT"]
[Termination "LL220284LL won by resignation"]

1. b3 {[%clk 0:04:57.2]} 1... b6 {[%clk 0:04:58.5]} 2. Bb2 {[%clk 0:04:56.8]}
2... Bb7 {[%clk 0:04:58]} 3. e3 {[%clk 0:04:55.4]} 3... a5 {[%clk 0:04:57]} 4.
Nf3 {[%clk 0:04:53.1]} 4... a4 {[%clk 0:04:55.6]} 5. bxa4 {[%clk 0:04:53]} 5...
Rxa4 {[%clk 0:04:54]} 6. Be2 {[%clk 0:04:51.5]} 6... Nf6 {[%clk 0:04:52.6]} 7.
O-O {[%clk 0:04:50.3]} 7... g6 {[%clk 0:04:52.1]} 8. c4 {[%clk 0:04:48.8]} 8...
Bg7 {[%clk 0:04:51]} 9. Qxa4 {[%clk 0:04:47.5]} 9... O-O {[%clk 0:04:48.2]} 10.
Nc3 {[%clk 0:04:45.6]} 10... Nc6 {[%clk 0:04:46.2]} 11. d4 {[%clk 0:04:43.8]}
11... d5 {[%clk 0:04:43.6]} 12. cxd5 {[%clk 0:04:41.6]} 12... Nxd5 {[%clk
0:04:42.5]} 13. Nxd5 {[%clk 0:04:40.1]} 13... Qxd5 {[%clk 0:04:41.2]} 14. Qb3
{[%clk 0:04:36.3]} 14... Qh5 {[%clk 0:04:37.2]} 15. Qd1 {[%clk 0:04:31.6]} 15...
Qf5 {[%clk 0:04:33.9]} 16. Bd3 {[%clk 0:04:29.2]} 16... Qd5 {[%clk 0:04:32.7]}
17. Rc1 {[%clk 0:04:26.7]} 17... Rd8 {[%clk 0:04:27.4]} 18. Bc4 {[%clk
0:04:24.7]} 18... Qf5 {[%clk 0:04:25.3]} 19. e4 {[%clk 0:04:22.3]} 19... Qxe4
{[%clk 0:04:20.8]} 20. Ng5 {[%clk 0:04:17.7]} 20... Qf4 {[%clk 0:04:07.9]} 21.
Nxf7 {[%clk 0:04:14.6]} 21... Kf8 {[%clk 0:04:05.5]} 22. Nxd8 {[%clk 0:04:09.7]}
22... Nxd8 {[%clk 0:04:05.4]} 23. Rc2 {[%clk 0:03:54.6]} 23... Nf7 {[%clk
0:03:59.3]} 24. d5 {[%clk 0:03:52]} 24... Ne5 {[%clk 0:03:54.5]} 25. Re1 {[%clk
0:03:46.5]} 25... Nxc4 {[%clk 0:03:46.7]} 26. Bxg7+ {[%clk 0:03:42.9]} 26...
Kxg7 {[%clk 0:03:45.8]} 27. Rxe7+ {[%clk 0:03:37.1]} 27... Kh6 {[%clk
0:03:42.1]} 28. Qc1 {[%clk 0:03:32.6]} 28... Qxc1+ {[%clk 0:03:17.5]} 29. Rxc1
{[%clk 0:03:32.5]} 29... Bxd5 {[%clk 0:03:16.9]} 30. Rxc7 {[%clk 0:03:29.8]}
30... Ne5 {[%clk 0:03:11.7]} 31. h3 {[%clk 0:03:22.5]} 31... Bxa2 {[%clk
0:03:08.1]} 32. Rb7 {[%clk 0:03:17.5]} 32... Bd5 {[%clk 0:03:03.7]} 33. Rxb6
{[%clk 0:03:15.8]} 33... Nd3 {[%clk 0:02:58.4]} 34. Rd1 {[%clk 0:03:11.3]} 34...
Bc4 {[%clk 0:02:51.4]} 35. Rd6 {[%clk 0:03:07.2]} 35... Nf4 {[%clk 0:02:47.3]}
36. Kh2 {[%clk 0:03:03.1]} 36... Ne6 {[%clk 0:02:35.6]} 37. Rc6 {[%clk
0:02:58.9]} 37... Ba2 {[%clk 0:02:31.6]} 38. Rd2 {[%clk 0:02:56.9]} 38... Bb3
{[%clk 0:02:28.6]} 39. Rc3 {[%clk 0:02:52.4]} 39... Ba4 {[%clk 0:02:23.4]} 40.
Rb2 {[%clk 0:02:50.8]} 40... Kg7 {[%clk 0:02:15.5]} 41. Rb4 {[%clk 0:02:49.3]}
41... Be8 {[%clk 0:02:11.5]} 42. Re3 {[%clk 0:02:47.3]} 42... Kf6 {[%clk
0:02:07.5]} 43. Rb6 {[%clk 0:02:45.7]} 43... Bd7 {[%clk 0:02:04.3]} 44. Kg3
{[%clk 0:02:42.5]} 44... h6 {[%clk 0:02:00]} 45. f4 {[%clk 0:02:39.9]} 45... g5
{[%clk 0:01:53.4]} 46. fxg5+ {[%clk 0:02:38.3]} 46... hxg5 {[%clk 0:01:51.4]}
47. Kg4 {[%clk 0:02:36.4]} 47... Bc8 {[%clk 0:01:43.1]} 48. Rbxe6+ {[%clk
0:02:34.9]} 48... Bxe6+ {[%clk 0:01:41.7]} 49. Rxe6+ {[%clk 0:02:34.8]} 49...
Kxe6 {[%clk 0:01:41.2]} 50. Kxg5 {[%clk 0:02:34.7]} 1-0

[Event "Live Chess"]
[Site "Chess.com"]
[Date "2024.06.01"]
[Round "-"]
[White "ShanthamGrarks"]
[Black "Duke_of_Bebington"]
[Result "1/2-1/2"]
[WhiteElo "1811"]
[BlackElo "1614"]
[TimeControl "300"]
[EndTime "13:20:57 PDT"]
[Termination "Game drawn by agreement"]

1. d4 {[%clk 0:04:54.6]} 1... Nf6 {[%clk 0:04:55.2]} 2. Nc3 {[%clk 0:04:52]}
2... d5 {[%clk 0:04:52.7]} 3. Bf4 {[%clk 0:04:49.1]} 3... c6 {[%clk 0:04:50.2]}
4. Nf3 {[%clk 0:04:48.4]} 4... Bf5 {[%clk 0:04:48]} 5. e3 {[%clk 0:04:47.8]}
5... e6 {[%clk 0:04:47.3]} 6. Nh4 {[%clk 0:04:46.5]} 6... Bg6 {[%clk 0:04:45.5]}
7. Nxg6 {[%clk 0:04:45.7]} 7... hxg6 {[%clk 0:04:45.4]} 8. Bd3 {[%clk 0:04:44]}
8... Bd6 {[%clk 0:04:44.4]} 9. Bg5 {[%clk 0:04:41.1]} 9... Nbd7 {[%clk
0:04:43.6]} 10. h4 {[%clk 0:04:39.6]} 10... Qb6 {[%clk 0:04:40.8]} 11. Na4
{[%clk 0:04:34]} 11... Qc7 {[%clk 0:04:38.1]} 12. Qe2 {[%clk 0:04:29.6]} 12...
Nb6 {[%clk 0:04:34.2]} 13. Nxb6 {[%clk 0:04:26.1]} 13... axb6 {[%clk 0:04:32.9]}
14. a3 {[%clk 0:04:24.4]} 14... Ne4 {[%clk 0:04:22.9]} 15. Bxe4 {[%clk
0:04:20.4]} 15... dxe4 {[%clk 0:04:22.8]} 16. h5 {[%clk 0:04:03.1]} 16... f6
{[%clk 0:04:16.4]} 17. Bf4 {[%clk 0:03:55.4]} 17... Bxf4 {[%clk 0:04:14.9]} 18.
exf4 {[%clk 0:03:54.9]} 18... Qxf4 {[%clk 0:04:13.3]} 19. g3 {[%clk 0:03:54]}
19... Qf5 {[%clk 0:03:57.9]} 20. g4 {[%clk 0:03:51.6]} 20... Qd5 {[%clk
0:03:49.9]} 21. O-O-O {[%clk 0:03:49.1]} 21... b5 {[%clk 0:03:44.5]} 22. hxg6
{[%clk 0:03:44.8]} 22... Rxh1 {[%clk 0:03:41.1]} 23. Rxh1 {[%clk 0:03:43.7]}
23... Ke7 {[%clk 0:03:40.8]} 24. Rh7 {[%clk 0:03:41.6]} 24... Rg8 {[%clk
0:03:37.1]} 25. Qd2 {[%clk 0:03:36.7]} 25... Qg5 {[%clk 0:03:22.6]} 26. Qxg5
{[%clk 0:03:31.1]} 26... fxg5 {[%clk 0:03:22.5]} 27. Kd2 {[%clk 0:03:27.2]}
27... Kf6 {[%clk 0:03:21.2]} 28. Ke3 {[%clk 0:03:24.9]} 28... Kxg6 {[%clk
0:03:20.4]} 29. Rh1 {[%clk 0:03:18]} 29... Rf8 {[%clk 0:03:19.2]} 30. Rh3 {[%clk
0:03:04]} 30... Rf4 {[%clk 0:03:16.2]} 31. Rg3 {[%clk 0:03:02.9]} 31... Kf6
{[%clk 0:03:11.8]} 32. c3 {[%clk 0:03:01]} 32... e5 {[%clk 0:03:05.2]} 33. Rg2
{[%clk 0:02:52.2]} 33... Rf3+ {[%clk 0:02:59.7]} 34. Kxe4 {[%clk 0:02:49.1]}
34... Rf4+ {[%clk 0:02:56.4]} 35. Ke3 {[%clk 0:02:47.8]} 35... exd4+ {[%clk
0:02:54.7]} 36. cxd4 {[%clk 0:02:47.3]} 36... Ke6 {[%clk 0:02:54]} 37. f3 {[%clk
0:02:44.4]} 37... Kd5 {[%clk 0:02:53.3]} 38. Rd2 {[%clk 0:02:43.5]} 38... Rf6
{[%clk 0:02:47.1]} 39. Rf2 {[%clk 0:02:37]} 39... Re6+ {[%clk 0:02:45.2]} 40.
Kd3 {[%clk 0:02:35.8]} 40... Rf6 {[%clk 0:02:41.6]} 41. b3 {[%clk 0:02:31]}
41... Rf4 {[%clk 0:02:40.6]} 42. Kc3 {[%clk 0:02:19.6]} 42... Rxd4 {[%clk
0:02:38.9]} 43. Re2 {[%clk 0:02:18.9]} 43... Rf4 {[%clk 0:02:35.9]} 44. Re7
{[%clk 0:02:17.4]} 44... Rxf3+ {[%clk 0:02:34.5]} 45. Kc2 {[%clk 0:02:16.7]}
45... Rg3 {[%clk 0:02:26.7]} 46. Rxb7 {[%clk 0:02:06.4]} 46... Rxg4 {[%clk
0:02:23.6]} 47. Rxg7 {[%clk 0:02:06]} 47... Rg2+ {[%clk 0:02:21.6]} 48. Kc3
{[%clk 0:02:04.6]} 48... Rg3+ {[%clk 0:02:19.9]} 49. Kc2 {[%clk 0:02:03]} 49...
g4 {[%clk 0:02:19.2]} 50. Rd7+ {[%clk 0:01:59.4]} 50... Kc5 {[%clk 0:02:18.2]}
51. Rd2 {[%clk 0:01:53.1]} 51... Kb6 {[%clk 0:02:14.9]} 52. Rd4 {[%clk
0:01:40.4]} 52... Kc7 {[%clk 0:02:07.4]} 53. a4 {[%clk 0:01:37]} 53... bxa4
{[%clk 0:02:06]} 54. bxa4 {[%clk 0:01:36.9]} 54... Kb6 {[%clk 0:02:05.3]} 55.
Kd2 {[%clk 0:01:34]} 55... Ka5 {[%clk 0:01:56.5]} 56. Rc4 {[%clk 0:01:31.1]}
56... Kb6 {[%clk 0:01:55.4]} 57. Ke2 {[%clk 0:01:28.2]} 57... c5 {[%clk
0:01:36.9]} 58. Kf2 {[%clk 0:01:25.8]} 58... Ra3 {[%clk 0:01:33.7]} 59. Rxg4
{[%clk 0:01:24.6]} 59... Ka5 {[%clk 0:01:33.1]} 60. Rc4 {[%clk 0:01:11.8]} 60...
Rxa4 {[%clk 0:01:31.3]} 61. Rxc5+ {[%clk 0:01:10.5]} 61... Kb4 {[%clk
0:01:29.1]} 62. Rc7 {[%clk 0:01:09]} 1/2-1/2

[Event "Live Chess"]
[Site "Chess.com"]
[Date "2024.06.01"]
[Round "-"]
[White "imchessive"]
[Black "agamilewska"]
[Result "0-1"]
[WhiteElo "1593"]
[BlackElo "1771"]
[TimeControl "300"]
[EndTime "13:21:04 PDT"]
[Termination "agamilewska won by checkmate"]

1. d4 {[%clk 0:04:58.4]} 1... d5 {[%clk 0:04:59.2]} 2. c4 {[%clk 0:04:57.5]}
2... Nf6 {[%clk 0:04:57.9]} 3. Nf3 {[%clk 0:04:56.7]} 3... e6 {[%clk 0:04:56.8]}
4. g3 {[%clk 0:04:56.1]} 4... c5 {[%clk 0:04:55.8]} 5. Bg2 {[%clk 0:04:54.4]}
5... Nc6 {[%clk 0:04:51.1]} 6. cxd5 {[%clk 0:04:53.3]} 6... Nxd5 {[%clk
0:04:47.8]} 7. Nc3 {[%clk 0:04:48.5]} 7... cxd4 {[%clk 0:04:44.8]} 8. Nxd4
{[%clk 0:04:46.5]} 8... Nxd4 {[%clk 0:04:43.6]} 9. Qxd4 {[%clk 0:04:45.4]} 9...
Nxc3 {[%clk 0:04:38.4]} 10. Qxd8+ {[%clk 0:04:42.8]} 10... Kxd8 {[%clk
0:04:38.1]} 11. bxc3 {[%clk 0:04:42.3]} 11... Bc5 {[%clk 0:04:33.3]} 12. Bf4
{[%clk 0:04:27.3]} 12... f6 {[%clk 0:04:25.2]} 13. Rd1+ {[%clk 0:04:22.9]} 13...
Ke7 {[%clk 0:04:23.9]} 14. Bc7 {[%clk 0:03:58.7]} 14... Bb6 {[%clk 0:03:55.7]}
15. Bxb6 {[%clk 0:03:53.6]} 15... axb6 {[%clk 0:03:54.7]} 16. Rd2 {[%clk
0:03:50.6]} 16... Rd8 {[%clk 0:03:50.7]} 17. Rb2 {[%clk 0:03:48.3]} 17... Rd6
{[%clk 0:03:43.1]} 18. O-O {[%clk 0:03:45.2]} 18... e5 {[%clk 0:03:42.5]} 19.
Rfb1 {[%clk 0:03:41.5]} 19... Bf5 {[%clk 0:03:30.9]} 20. e4 {[%clk 0:03:37.5]}
20... Bd7 {[%clk 0:03:19.5]} 21. f4 {[%clk 0:03:15.7]} 21... exf4 {[%clk
0:03:05.3]} 22. gxf4 {[%clk 0:03:15.6]} 22... Rd3 {[%clk 0:03:01.4]} 23. e5
{[%clk 0:03:00.1]} 23... fxe5 {[%clk 0:02:57.3]} 24. fxe5 {[%clk 0:02:54.4]}
24... Bc6 {[%clk 0:02:42.6]} 25. Bxc6 {[%clk 0:02:48.1]} 25... bxc6 {[%clk
0:02:42.5]} 26. Rxb6 {[%clk 0:02:47.2]} 26... Rxc3 {[%clk 0:02:41.4]} 27. R1b2
{[%clk 0:02:26.6]} 27... Ke6 {[%clk 0:02:35.8]} 28. Rb7 {[%clk 0:02:18.6]} 28...
Rg8 {[%clk 0:02:09.9]} 29. a4 {[%clk 0:02:13]} 29... Ra3 {[%clk 0:02:02.7]} 30.
Ra7 {[%clk 0:02:10.4]} 30... h6 {[%clk 0:01:54.1]} 31. Rb6 {[%clk 0:02:03.7]}
31... Kxe5 {[%clk 0:01:49.4]} 32. Rxc6 {[%clk 0:02:01.4]} 32... Rb8 {[%clk
0:01:42.7]} 33. Rc1 {[%clk 0:01:47.4]} 33... g5 {[%clk 0:01:37.1]} 34. a5 {[%clk
0:01:43.9]} 34... Rb5 {[%clk 0:01:29.1]} 35. a6 {[%clk 0:01:42.3]} 35... Rb6
{[%clk 0:01:26.9]} 36. Re7+ {[%clk 0:01:33.5]} 36... Kf6 {[%clk 0:01:20.8]} 37.
Rh7 {[%clk 0:01:32]} 37... Kg6 {[%clk 0:01:12.8]} 38. Rcc7 {[%clk 0:01:07.1]}
38... Rbxa6 {[%clk 0:01:11.7]} 39. Rhg7+ {[%clk 0:01:04]} 39... Kh5 {[%clk
0:01:09.7]} 40. Rc2 {[%clk 0:01:01.2]} 40... Ra1+ {[%clk 0:01:07.6]} 41. Kg2
{[%clk 0:00:59]} 41... R1a2 {[%clk 0:01:06.5]} 42. Rc7 {[%clk 0:00:54.6]} 42...
Rxc2+ {[%clk 0:01:04.7]} 43. Rxc2 {[%clk 0:00:54.5]} 43... Ra3 {[%clk
0:00:59.5]} 44. Rc4 {[%clk 0:00:53.4]} 44... g4 {[%clk 0:00:55]} 45. Kf2 {[%clk
0:00:48.9]} 45... Kh4 {[%clk 0:00:51]} 46. Kg2 {[%clk 0:00:47.8]} 46... h5
{[%clk 0:00:49.7]} 47. Rc2 {[%clk 0:00:44.6]} 47... Rb3 {[%clk 0:00:47.6]} 48.
Rd2 {[%clk 0:00:43.1]} 48... Rf3 {[%clk 0:00:44.6]} 49. Re2 {[%clk 0:00:41.4]}
49... Rf5 {[%clk 0:00:43.8]} 50. Re3 {[%clk 0:00:38.5]} 50... Kg5 {[%clk
0:00:43.3]} 51. Rd3 {[%clk 0:00:37.1]} 51... h4 {[%clk 0:00:42.8]} 52. h3 {[%clk
0:00:34]} 52... g3 {[%clk 0:00:41.3]} 53. Rd4 {[%clk 0:00:33.1]} 53... Rf2+
{[%clk 0:00:40.1]} 54. Kg1 {[%clk 0:00:32.3]} 54... Ra2 {[%clk 0:00:37.5]} 55.
Rg4+ {[%clk 0:00:30.2]} 55... Kh5 {[%clk 0:00:36.7]} 56. Kf1 {[%clk 0:00:28.8]}
56... Rh2 {[%clk 0:00:33.9]} 57. Kg1 {[%clk 0:00:25.7]} 57... Rxh3 {[%clk
0:00:32.6]} 58. Rd4 {[%clk 0:00:24.1]} 58... Rh2 {[%clk 0:00:31.8]} 59. Rd5+
{[%clk 0:00:22.6]} 59... Kg4 {[%clk 0:00:30.3]} 60. Rd4+ {[%clk 0:00:22.5]}
60... Kh3 {[%clk 0:00:29.7]} 61. Rf4 {[%clk 0:00:20.3]} 61... Ra2 {[%clk
0:00:29.1]} 62. Rf1 {[%clk 0:00:18.4]} 62... Kg4 {[%clk 0:00:25.7]} 63. Rd1
{[%clk 0:00:17.4]} 63... Rf2 {[%clk 0:00:22.4]} 64. Rd4+ {[%clk 0:00:16.5]}
64... Rf4 {[%clk 0:00:22]} 65. Rd1 {[%clk 0:00:16.4]} 65... h3 {[%clk
0:00:21.4]} 66. Re1 {[%clk 0:00:14.5]} 66... h2+ {[%clk 0:00:19.5]} 67. Kg2
{[%clk 0:00:13.7]} 67... Rf2+ {[%clk 0:00:18.8]} 68. Kh1 {[%clk 0:00:12.9]}
68... Kf3 {[%clk 0:00:13.8]} 69. Rc1 {[%clk 0:00:11.2]} 69... Re2 {[%clk
0:00:11.8]} 70. Rc3+ {[%clk 0:00:10.4]} 70... Re3 {[%clk 0:00:09.9]} 71. Rc1
{[%clk 0:00:10.3]} 71... Kf2 {[%clk 0:00:08.2]} 72. Rc2+ {[%clk 0:00:09.3]}
72... Re2 {[%clk 0:00:06.7]} 73. Rc3 {[%clk 0:00:09.2]} 73... g2+ {[%clk
0:00:05.7]} 74. Kxh2 {[%clk 0:00:08.6]} 74... g1=Q+ {[%clk 0:00:05]} 75. Kh3
{[%clk 0:00:08]} 75... Re3+ {[%clk 0:00:04.1]} 76. Rxe3 {[%clk 0:00:07.2]} 76...
Kxe3 {[%clk 0:00:04]} 77. Kh4 {[%clk 0:00:06.3]} 77... Qg6 {[%clk 0:00:03.1]}
78. Kh3 {[%clk 0:00:05.3]} 78... Kf3 {[%clk 0:00:03]} 79. Kh2 {[%clk 0:00:04.5]}
79... Qg2# {[%clk 0:00:02.5]} 0-1

[Event "Live Chess"]
[Site "Chess.com"]
[Date "2024.06.01"]
[Round "-"]
[White "nigelst"]
[Black "Ferrarifan27"]
[Result "0-1"]
[WhiteElo "1659"]
[BlackElo "2070"]
[TimeControl "300"]
[EndTime "13:21:10 PDT"]
[Termination "Ferrarifan27 won by resignation"]

1. e4 {[%clk 0:04:57.2]} 1... e5 {[%clk 0:04:58.4]} 2. Nf3 {[%clk 0:04:55.8]}
2... Nc6 {[%clk 0:04:56.9]} 3. Bb5 {[%clk 0:04:54.5]} 3... a6 {[%clk 0:04:55.5]}
4. Bxc6 {[%clk 0:04:52.7]} 4... dxc6 {[%clk 0:04:53.2]} 5. O-O {[%clk
0:04:52.3]} 5... Bg4 {[%clk 0:04:51]} 6. h3 {[%clk 0:04:49.9]} 6... h5 {[%clk
0:04:49.1]} 7. d3 {[%clk 0:04:47.8]} 7... Qf6 {[%clk 0:04:45.4]} 8. Be3 {[%clk
0:04:47]} 8... Ne7 {[%clk 0:04:43.5]} 9. Nbd2 {[%clk 0:04:44.8]} 9... Ng6 {[%clk
0:04:41.4]} 10. c3 {[%clk 0:04:42.1]} 10... Nf4 {[%clk 0:04:34.9]} 11. Bxf4
{[%clk 0:04:36.8]} 11... Qxf4 {[%clk 0:04:31.6]} 12. Qb3 {[%clk 0:04:34.1]}
12... O-O-O {[%clk 0:04:27.2]} 13. Rfe1 {[%clk 0:04:27]} 13... Rxd3 {[%clk
0:04:14.7]} 14. Qc2 {[%clk 0:04:13.7]} 14... Rd8 {[%clk 0:04:01.7]} 15. b4
{[%clk 0:04:02.3]} 15... Be6 {[%clk 0:03:49.2]} 16. a4 {[%clk 0:03:54.3]} 16...
g5 {[%clk 0:03:47.3]} 17. Nb3 {[%clk 0:03:42.5]} 17... g4 {[%clk 0:03:44]} 18.
hxg4 {[%clk 0:03:40.7]} 18... hxg4 {[%clk 0:03:42.7]} 0-1

[Event "Live Chess"]
[Site "Chess.com"]
[Date "2024.06.01"]
[Round "-"]
[White "defenderalist"]
[Black "nitrofish07"]
[Result "1/2-1/2"]
[WhiteElo "1529"]
[BlackElo "2095"]
[TimeControl "300"]
[EndTime "13:21:11 PDT"]
[Termination "Game drawn by repetition"]

1. e4 {[%clk 0:04:59.1]} 1... c5 {[%clk 0:04:58.7]} 2. f4 {[%clk 0:04:55.8]}
2... d5 {[%clk 0:04:57.7]} 3. exd5 {[%clk 0:04:50.9]} 3... Qxd5 {[%clk
0:04:57.6]} 4. Nf3 {[%clk 0:04:48]} 4... Bg4 {[%clk 0:04:56.2]} 5. Be2 {[%clk
0:04:46.8]} 5... Nc6 {[%clk 0:04:54.2]} 6. O-O {[%clk 0:04:44.7]} 6... Nf6
{[%clk 0:04:52.9]} 7. c4 {[%clk 0:04:42.3]} 7... Qd8 {[%clk 0:04:50.9]} 8. h3
{[%clk 0:04:36]} 8... Bxf3 {[%clk 0:04:49.7]} 9. Bxf3 {[%clk 0:04:34]} 9... e6
{[%clk 0:04:49.6]} 10. Bxc6+ {[%clk 0:04:31.7]} 10... bxc6 {[%clk 0:04:49.5]}
11. Qf3 {[%clk 0:04:27]} 11... Qb6 {[%clk 0:04:47.2]} 12. Nc3 {[%clk 0:04:24.8]}
12... Be7 {[%clk 0:04:45.6]} 13. f5 {[%clk 0:04:21]} 13... exf5 {[%clk 0:04:42]}
14. Qxf5 {[%clk 0:04:17.4]} 14... O-O {[%clk 0:04:41.9]} 15. d3 {[%clk
0:04:13.2]} 15... Rfd8 {[%clk 0:04:39.1]} 16. Bg5 {[%clk 0:04:04.9]} 16... Qxb2
{[%clk 0:04:36.4]} 17. Ne4 {[%clk 0:03:53.1]} 17... Rxd3 {[%clk 0:04:20.4]} 18.
Nxf6+ {[%clk 0:03:47.4]} 18... Bxf6 {[%clk 0:04:18.7]} 19. Bxf6 {[%clk
0:03:37.2]} 19... Qe2 {[%clk 0:03:59]} 20. Bxg7 {[%clk 0:03:26.1]} 20... Kxg7
{[%clk 0:03:53.1]} 21. Qxf7+ {[%clk 0:03:20.2]} 21... Kh8 {[%clk 0:03:52.3]} 22.
Qf6+ {[%clk 0:03:14.1]} 22... Kg8 {[%clk 0:03:51.2]} 23. Qf7+ {[%clk 0:02:46.2]}
23... Kh8 {[%clk 0:03:49.7]} 24. Qf6+ {[%clk 0:02:45.4]} 24... Kg8 {[%clk
0:03:49.6]} 25. Qf7+ {[%clk 0:02:44.7]} 25... Kh8 {[%clk 0:03:48.8]} 1/2-1/2

[Event "Live Chess"]
[Site "Chess.com"]
[Date "2024.06.01"]
[Round "-"]
[White "Dhaydon19"]
[Black "vincents82"]
[Result "1-0"]
[WhiteElo "2667"]
[BlackElo "2098"]
[TimeControl "300"]
[EndTime "13:21:13 PDT"]
[Termination "Dhaydon19 won by resignation"]

1. d4 {[%clk 0:04:57.5]} 1... d5 {[%clk 0:04:53.3]} 2. Nf3 {[%clk 0:04:56.7]}
2... Nf6 {[%clk 0:04:51.7]} 3. c3 {[%clk 0:04:56.2]} 3... Bf5 {[%clk 0:04:48.9]}
4. g3 {[%clk 0:04:54.3]} 4... c6 {[%clk 0:04:47.8]} 5. Bg2 {[%clk 0:04:47.5]}
5... e6 {[%clk 0:04:46.7]} 6. Nbd2 {[%clk 0:04:44.8]} 6... Nbd7 {[%clk
0:04:44.2]} 7. O-O {[%clk 0:04:42.8]} 7... Ne4 {[%clk 0:04:42]} 8. Re1 {[%clk
0:04:41.4]} 8... h6 {[%clk 0:04:38]} 9. Nh4 {[%clk 0:04:39.7]} 9... Bh7 {[%clk
0:04:36.7]} 10. Nhf3 {[%clk 0:04:37.6]} 10... Be7 {[%clk 0:04:33.9]} 11. Nxe4
{[%clk 0:04:36.9]} 11... Bxe4 {[%clk 0:04:32.5]} 12. Nd2 {[%clk 0:04:36.6]}
12... Bxg2 {[%clk 0:04:31.2]} 13. Kxg2 {[%clk 0:04:36.3]} 13... Nf6 {[%clk
0:04:28]} 14. Qb3 {[%clk 0:04:35.4]} 14... Qb6 {[%clk 0:04:26.5]} 15. Qa4 {[%clk
0:04:34.4]} 15... O-O {[%clk 0:04:24.9]} 16. Nf3 {[%clk 0:04:33.4]} 16... c5
{[%clk 0:04:22]} 17. e3 {[%clk 0:04:28.6]} 17... Ne4 {[%clk 0:04:20.5]} 18. Ne5
{[%clk 0:04:27.4]} 18... Rfd8 {[%clk 0:04:14.5]} 19. f3 {[%clk 0:04:24]} 19...
Nf6 {[%clk 0:04:13.2]} 20. Qb3 {[%clk 0:04:22.6]} 20... Bd6 {[%clk 0:04:11.2]}
21. Qxb6 {[%clk 0:04:11]} 21... axb6 {[%clk 0:04:08.7]} 22. Nd3 {[%clk
0:04:10.5]} 22... c4 {[%clk 0:04:01.6]} 23. Nb4 {[%clk 0:04:09.6]} 23... Bxb4
{[%clk 0:04:00.1]} 24. cxb4 {[%clk 0:04:08.9]} 24... b5 {[%clk 0:03:59.2]} 25.
Bd2 {[%clk 0:04:07.5]} 25... Nd7 {[%clk 0:03:49]} 26. a3 {[%clk 0:04:06.2]}
26... Nb6 {[%clk 0:03:47]} 27. Rac1 {[%clk 0:04:05.3]} 27... Na4 {[%clk
0:03:45]} 28. Rc2 {[%clk 0:04:04.9]} 28... Rac8 {[%clk 0:03:43]} 29. Rec1 {[%clk
0:04:04]} 29... Rc6 {[%clk 0:03:41.5]} 30. Be1 {[%clk 0:04:01.8]} 30... Rdc8
{[%clk 0:03:40.3]} 31. e4 {[%clk 0:03:59]} 31... Kf8 {[%clk 0:03:34.5]} 32. Kf2
{[%clk 0:03:56.1]} 32... Ke7 {[%clk 0:03:33.3]} 33. Ke3 {[%clk 0:03:55.2]} 33...
Kd7 {[%clk 0:03:14.7]} 34. g4 {[%clk 0:03:54.3]} 34... Nb6 {[%clk 0:03:04.6]}
35. Bg3 {[%clk 0:03:52.4]} 35... Na4 {[%clk 0:03:01.1]} 36. h4 {[%clk
0:03:50.4]} 36... c3 {[%clk 0:02:59]} 37. b3 {[%clk 0:03:49.3]} 37... Nb6 {[%clk
0:02:45.2]} 38. Kd3 {[%clk 0:03:48]} 38... Ra8 {[%clk 0:02:39.4]} 39. Ra2 {[%clk
0:03:46.4]} 39... Nc8 {[%clk 0:02:33.6]} 40. Rxc3 {[%clk 0:03:44.5]} 40... Rca6
{[%clk 0:02:32.2]} 41. Rc7+ {[%clk 0:03:39.1]} 41... Ke8 {[%clk 0:02:27]} 42.
Rxb7 {[%clk 0:03:32.5]} 42... Rxa3 {[%clk 0:02:22.9]} 43. Rxa3 {[%clk
0:03:28.4]} 43... Rxa3 {[%clk 0:02:18]} 44. Kc3 {[%clk 0:03:27.5]} 44... Ra7
{[%clk 0:01:59]} 45. Rxb5 {[%clk 0:03:24.3]} 45... Kd7 {[%clk 0:01:53.7]} 46.
exd5 {[%clk 0:03:21.1]} 46... exd5 {[%clk 0:01:52.7]} 47. Rxd5+ {[%clk
0:03:19.5]} 47... Ke6 {[%clk 0:01:51.5]} 48. Re5+ {[%clk 0:03:18.4]} 48... Kd7
{[%clk 0:01:50.4]} 49. Rd5+ {[%clk 0:03:13.2]} 49... Ke6 {[%clk 0:01:49]} 50.
Rc5 {[%clk 0:03:12.9]} 50... Nb6 {[%clk 0:01:46.8]} 51. Rc6+ {[%clk 0:03:11.7]}
1-0

[Event "Live Chess"]
[Site "Chess.com"]
[Date "2024.06.01"]
[Round "-"]
[White "matt1979"]
[Black "Sweet-O"]
[Result "0-1"]
[WhiteElo "1382"]
[BlackElo "1555"]
[TimeControl "300"]
[EndTime "13:21:23 PDT"]
[Termination "Sweet-O won on time"]

1. f4 {[%clk 0:04:59.1]} 1... e5 {[%clk 0:04:58.5]} 2. fxe5 {[%clk 0:04:57.7]}
2... Qe7 {[%clk 0:04:57.2]} 3. Nf3 {[%clk 0:04:54.2]} 3... g5 {[%clk 0:04:54.9]}
4. g3 {[%clk 0:04:43.4]} 4... g4 {[%clk 0:04:53.7]} 5. Nh4 {[%clk 0:04:41.2]}
5... Qxe5 {[%clk 0:04:51.6]} 6. d4 {[%clk 0:04:36.6]} 6... Qd6 {[%clk
0:04:48.4]} 7. Bg2 {[%clk 0:04:28.9]} 7... Be7 {[%clk 0:04:46.7]} 8. Nf5 {[%clk
0:04:25.7]} 8... Qf6 {[%clk 0:04:41]} 9. Nxe7 {[%clk 0:04:19.8]} 9... Nxe7
{[%clk 0:04:40.9]} 10. Rf1 {[%clk 0:04:10.1]} 10... Qb6 {[%clk 0:04:39.1]} 11.
c3 {[%clk 0:04:06.5]} 11... d6 {[%clk 0:04:36.5]} 12. Bg5 {[%clk 0:03:55.8]}
12... Nbc6 {[%clk 0:04:34.2]} 13. Qd2 {[%clk 0:03:38.7]} 13... Be6 {[%clk
0:04:28.8]} 14. d5 {[%clk 0:03:28.8]} 14... Nxd5 {[%clk 0:04:16.2]} 15. Bxd5
{[%clk 0:03:26.4]} 15... Bxd5 {[%clk 0:04:14.9]} 16. Qxd5 {[%clk 0:03:25.2]}
16... Ne5 {[%clk 0:03:59.5]} 17. Bf6 {[%clk 0:03:13.6]} 17... Qxb2 {[%clk
0:03:54.1]} 18. Bxe5 {[%clk 0:03:03.1]} 18... O-O-O {[%clk 0:03:27.1]} 19. Bxh8
{[%clk 0:02:42.8]} 19... Re8 {[%clk 0:03:12.1]} 20. Qd2 {[%clk 0:02:08.2]} 20...
Qxa1 {[%clk 0:03:08.9]} 21. Bd4 {[%clk 0:01:29.4]} 21... Qxb1+ {[%clk
0:03:03.6]} 22. Kf2 {[%clk 0:01:27.9]} 22... Qf5+ {[%clk 0:02:53.1]} 23. Kg1
{[%clk 0:01:25.8]} 23... Qe6 {[%clk 0:02:40]} 24. e3 {[%clk 0:01:19.7]} 24... f5
{[%clk 0:02:35]} 25. Rf4 {[%clk 0:01:02.7]} 25... c5 {[%clk 0:02:29]} 26. Bg7
{[%clk 0:00:56.1]} 26... Rg8 {[%clk 0:02:14.4]} 27. e4 {[%clk 0:00:33.4]} 27...
fxe4 {[%clk 0:01:58.1]} 28. Bh6 {[%clk 0:00:30]} 28... e3 {[%clk 0:01:54.2]} 29.
Qd3 {[%clk 0:00:19.1]} 29... e2 {[%clk 0:01:49.1]} 30. Re4 {[%clk 0:00:15.3]}
30... e1=Q+ {[%clk 0:01:46.4]} 31. Rxe1 {[%clk 0:00:12.8]} 31... Qxe1+ {[%clk
0:01:46.3]} 32. Kg2 {[%clk 0:00:11.9]} 32... Qe8 {[%clk 0:01:30.2]} 33. Qxd6
{[%clk 0:00:08.6]} 33... Qc6+ {[%clk 0:01:28.8]} 34. Qxc6+ {[%clk 0:00:06.6]}
34... bxc6 {[%clk 0:01:28.7]} 35. Bf4 {[%clk 0:00:04.1]} 35... Rd8 {[%clk
0:01:26.3]} 0-1